fUSD/lending_fUSD_20251031
["ID","MTS","AMOUNT","RATE_DAILY","PERIOD"]
[392744982,1761901752456,-620.0,0.00014991,2]
[392744983,1761901752480,-151.0,0.00014991,2]
[392744984,1761901752501,-209.40437684,0.00014991,2]
[392744985,1761901752521,-200.0,0.00014991,2]
[392744986,1761901752545,-500.0,0.00014991,2]
[392744987,1761901752565,-500.0,0.00014991,2]
[392744988,1761901752588,-614.78515512,0.00014991,2]
[392744989,1761901752608,-620.33901167,0.00014991,2]
[392744990,1761901752673,569.23818312,0.00031232,120]
[392744991,1761901752714,-414.91098833,0.00014991,2]
[392744992,1761901752737,-500.0,0.00014998,2]
[392744993,1761901752759,-500.0,0.00014998,2]
[392744994,1761901752780,-500.0,0.00014998,2]
[392744995,1761901752802,-500.0,0.00014998,2]
[392744996,1761901752823,-500.0,0.00014998,2]
[392744997,1761901752848,-500.0,0.00014998,2]
[392744998,1761901752869,-500.0,0.00014998,2]
[392744999,1761901752890,-380.83735949,0.00014998,2]
[392745000,1761901753227,-500.0,0.00014998,2]
[392745001,1761901753250,-466.95523848,0.00014998,2]
[392745002,1761901753269,-1000.0,0.00014999,2]
[392745003,1761901753289,-500.0,0.00014999,2]
[392745004,1761901753309,-563.45412786,0.00014999,2]
[392745005,1761901753330,-500.0,0.00014999,2]
[392745006,1761901753350,-500.0,0.00014999,2]
[392745007,1761901753370,-417.09066531,0.00014999,2]
[392745008,1761901753396,-500.0,0.00014999,2]
[392745009,1761901753416,-500.0,0.00014999,2]
[392745010,1761901753436,-500.0,0.00014999,2]
[392745011,1761901753456,-500.0,0.00014999,2]
[392745012,1761901753480,-500.0,0.00014999,2]
[392745013,1761901753500,-626.08232765,0.00014999,2]
[392745014,1761901753522,-500.0,0.00014999,2]
[392745015,1761901753543,-500.0,0.00014999,2]
[392745016,1761901753562,-500.0,0.00014999,2]
[392745017,1761901753583,-500.0,0.00014999,2]
[392745018,1761901753602,-500.0,0.00014999,2]
[392745019,1761901753623,-500.0,0.00014999,2]
[392745020,1761901753643,-130.66929288,0.00014999,2]
[392745021,1761901753712,-369.33070712,0.00014999,2]
[392745022,1761901753732,-500.0,0.00014999,2]
[392745023,1761901753752,-155.0,0.00014999,2]
[392745024,1761901753773,-500.0,0.00014999,2]
[392745025,1761901753794,-500.0,0.00014999,2]
[392745026,1761901753817,-500.0,0.00014999,2]
[392745027,1761901753838,-666.0,0.00014999,2]
[392745028,1761901753860,-11809.66929288,0.00014999,2]
[392745029,1761901753927,-9733.64447712,0.00014999,2]
[392745030,1761901753947,-1748.0,0.00015,2]
[392745031,1761901753969,-3518.35552288,0.00015,2]
[392745032,1761901754023,-15000.0,0.00015,2]
[392745033,1761901754068,-15000.0,0.00015,2]
[392745034,1761901754287,-15000.0,0.00015,2]
[392745035,1761901754691,-15000.0,0.00015,2]
[392745036,1761901754997,-15000.0,0.00015,2]
[392745037,1761901755305,-15000.0,0.00015,2]
[392745038,1761901756157,-15000.0,0.00015,2]
[392745039,1761901756227,756.03,0.00031232,120]
[392745040,1761901756270,521.80345289,0.00031232,120]
[392745041,1761901756311,502.99039519,0.00031232,120]
[392745042,1761901756401,756.03,0.00031506,120]
[392745043,1761901756431,-15000.0,0.00015,2]
[392745044,1761901756785,-15000.0,0.00015,2]
[392745045,1761901756833,500.0,0.00031232,120]
[392745046,1761901757050,500.0,0.00031506,120]
[392745047,1761901757376,-15000.0,0.00015,2]
[392745048,1761901757672,-15000.0,0.00015,2]
[392745049,1761901758118,-15000.0,0.00015,2]
[392745050,1761901758582,-15000.0,0.00015,2]
[392745051,1761901758820,-15000.0,0.00015,2]
[392745052,1761901759207,-15000.0,0.00015,2]
[392745053,1761901759475,547.10890367,0.00031232,120]
[392745054,1761901759761,-15000.0,0.00015,2]
[392745055,1761901759813,668.88,0.00031232,120]
[392745056,1761901759948,500.0,0.00031232,120]
[392745057,1761901760053,668.88,0.00031506,120]
[392745058,1761901760139,-15000.0,0.00015,2]
[392745059,1761901760218,518.24343772,0.00031506,120]
[392745060,1761901760607,-15000.0,0.00015,2]
[392745061,1761901761255,659.83,0.00031232,120]
[392745062,1761901761303,-15000.0,0.00015,2]
[392745063,1761901761489,659.83,0.00031506,120]
[392745064,1761901761616,-15000.0,0.00015,2]
[392745065,1761901761919,-15000.0,0.00015,2]
[392745066,1761901762226,-15000.0,0.00015,2]
[392745067,1761901762336,500.0,0.00031232,120]
[392745068,1761901762582,223.91510188,0.00031506,120]
[392745069,1761901762699,-15000.0,0.00015,2]
[392745070,1761901763042,-15000.0,0.00015,2]
[392745071,1761901763514,-15000.0,0.00015,2]
[392745072,1761901763814,-15000.0,0.00015,2]
[392745073,1761901764302,-15000.0,0.00015,2]
[392745074,1761901764511,500.0,0.00031232,120]
[392745075,1761901764557,500.0,0.00031232,120]
[392745076,1761901764760,500.0,0.00031506,120]
[392745077,1761901764786,-15000.0,0.00015,2]
[392745078,1761901764834,500.0,0.00031506,120]
[392745079,1761901765449,500.0,0.00031232,120]
[392745080,1761901765509,500.0,0.00031232,120]
[392745081,1761901765536,-15000.0,0.00015,2]
[392745082,1761901765671,500.0,0.00031506,120]
[392745083,1761901765725,500.0,0.00031506,120]
[392745084,1761901765771,500.0,0.00031232,120]
[392745085,1761901766007,500.0,0.00031506,120]
[392745086,1761901766490,-15000.0,0.00015,2]
[392745087,1761901766695,-15000.0,0.00015,2]
[392745088,1761901767188,-15000.0,0.00015,2]
[392745089,1761901767533,-15000.0,0.00015,2]
[392745090,1761901767979,696.2,0.00031232,120]
[392745091,1761901768005,-15000.0,0.00015,2]
[392745092,1761901768270,696.2,0.00031506,120]
[392745093,1761901768300,-15000.0,0.00015,2]
[392745094,1761901768848,-15000.0,0.00015,2]
[392745095,1761901770068,-15000.0,0.00015,2]
[392745096,1761901770129,500.0,0.00031232,120]
[392745097,1761901770379,500.0,0.00031506,120]
[392745098,1761901770686,500.0,0.00031232,120]
[392745099,1761901770878,-15000.0,0.00015,2]
[392745100,1761901770931,500.0,0.00031506,120]
[392745101,1761901770982,194.9754542,0.00031232,120]
[392745102,1761901771176,344.51438219,0.00031232,120]
[392745103,1761901771256,-15000.0,0.00015,2]
[392745104,1761901771572,497.15858862,0.00031232,120]
[392745105,1761901771604,-15000.0,0.00015,2]
[392745106,1761901772169,-15000.0,0.00015,2]
[392745107,1761901772511,-15000.0,0.00015,2]
[392745108,1761901772856,-15000.0,0.00015,2]
[392745109,1761901773065,539.63,0.00031232,120]
[392745110,1761901773339,-15000.0,0.00015,2]
[392745111,1761901773448,500.0,0.00031232,120]
[392745112,1761901773528,539.63,0.00031506,120]
[392745113,1761901773728,-15000.0,0.00015,2]
[392745114,1761901773775,500.0,0.00031506,120]
[392745115,1761901774137,-15000.0,0.00015,2]
[392745116,1761901774606,-15000.0,0.00015,2]
[392745117,1761901775053,-15000.0,0.00015,2]
[392745118,1761901775420,528.88,0.00031232,120]
[392745119,1761901775478,-15000.0,0.00015,2]
[392745120,1761901775663,528.88,0.00031506,120]
[392745121,1761901775932,-15000.0,0.00015,2]
[392745122,1761901776028,457.83728804,0.00031232,120]
[392745123,1761901776076,500.0,0.00031232,120]
[392745124,1761901776288,500.0,0.00031506,120]
[392745125,1761901777101,-15000.0,0.00015,2]
[392745126,1761901777165,-15000.0,0.00015,2]
[392745127,1761901777739,500.0,0.00031232,120]
[392745128,1761901777832,-15000.0,0.00015,2]
[392745129,1761901778157,500.0,0.00031506,120]
[392745130,1761901778548,-15000.0,0.00015,2]
[392745131,1761901778870,-15000.0,0.00015,2]
[392745132,1761901779354,-15000.0,0.00015,2]
[392745133,1761901779404,500.0,0.00031232,120]
[392745134,1761901779619,500.0,0.00031506,120]
[392745135,1761901779704,-15000.0,0.00015,2]
[392745136,1761901780048,-15000.0,0.00015,2]
[392745137,1761901781376,-15000.0,0.00015,2]
[392745138,1761901781532,500.0,0.00031232,120]
[392745139,1761901781672,630.82,0.00031232,120]
[392745140,1761901781834,500.0,0.00031506,120]
[392745141,1761901781906,630.82,0.00031506,120]
[392745142,1761901781994,-15000.0,0.00015,2]
[392745143,1761901782313,-15000.0,0.00015,2]
[392745144,1761901782595,500.0,0.00031232,120]
[392745145,1761901782686,536.03,0.00031232,120]
[392745146,1761901782778,-15000.0,0.00015,2]
[392745147,1761901782831,500.0,0.00031506,120]
[392745148,1761901782874,500.0,0.00031232,120]
[392745149,1761901782928,536.03,0.00031506,120]
[392745150,1761901783096,500.0,0.00031506,120]
[392745151,1761901783123,-15000.0,0.00015,2]
[392745152,1761901783243,500.0,0.00031232,120]
[392745153,1761901783479,500.0,0.00031506,120]
[392745154,1761901783611,-15000.0,0.00015,2]
[392745155,1761901783923,-15000.0,0.00015,2]
[392745156,1761901784421,-15000.0,0.00015,2]
[392745157,1761901784759,-15000.0,0.00015,2]
[392745158,1761901785242,-15000.0,0.00015,2]
[392745159,1761901785569,500.0,0.00031232,120]
[392745160,1761901785667,-15000.0,0.00015,2]
[392745161,1761901785807,500.0,0.00031506,120]
[392745162,1761901786387,-15000.0,0.00015,2]
[392745163,1761901787153,500.0,0.00031232,120]
[392745164,1761901787181,-15000.0,0.00015,2]
[392745165,1761901787241,500.0,0.00031506,120]
[392745166,1761901787533,-15000.0,0.00015,2]
[392745167,1761901788980,-15000.0,0.00015,2]
[392745168,1761901789089,500.0,0.00031232,120]
[392745169,1761901789331,500.0,0.00031506,120]
[392745170,1761901789516,-15000.0,0.00015,2]
[392745171,1761901789782,500.0,0.00031232,120]
[392745172,1761901789942,-15000.0,0.00015,2]
[392745173,1761901790018,500.0,0.00031506,120]
[392745174,1761901790540,-15000.0,0.00015,2]
[392745175,1761901791142,-15000.0,0.00015,2]
[392745176,1761901791586,644.87,0.00031232,120]
[392745177,1761901791850,644.87,0.00031506,120]
[392745178,1761901792520,-15000.0,0.00015,2]
[392745179,1761901792813,500.0,0.00031232,120]
[392745180,1761901792997,-15000.0,0.00015,2]
[392745181,1761901793055,508.46,0.00031232,120]
[392745182,1761901793100,500.0,0.00031506,120]
[392745183,1761901793304,508.46,0.00031506,120]
[392745184,1761901793576,-15000.0,0.00015,2]
[392745185,1761901794557,-15000.0,0.00015,2]
[392745186,1761901794993,-15000.0,0.00015,2]
[392745187,1761901795914,500.0,0.00031232,120]
[392745188,1761901796185,500.0,0.00031506,120]
[392745189,1761901796253,500.0,0.00031232,120]
[392745190,1761901796481,500.0,0.00031506,120]
[392745191,1761901796673,-15000.0,0.00015,2]
[392745192,1761901796970,-15000.0,0.00015,2]
[392745193,1761901797786,-15000.0,0.00015,2]
[392745194,1761901798014,500.0,0.00031232,120]
[392745195,1761901798435,500.0,0.00031506,120]
[392745196,1761901798823,-15000.0,0.00015,2]
[392745197,1761901799329,500.0,0.00031232,120]
[392745198,1761901799608,500.0,0.00031506,120]
[392745199,1761901800334,500.0,0.00031232,120]
[392745200,1761901800395,500.0,0.00031232,120]
[392745201,1761901800424,-15000.0,0.00015,2]
[392745202,1761901800573,500.0,0.00031506,120]
[392745203,1761901800626,218.09166954,0.00031506,120]
[392745204,1761901801591,500.0,0.00031232,120]
[392745205,1761901801648,-15000.0,0.00015,2]
[392745206,1761901801822,500.0,0.00031506,120]
[392745207,1761901802788,-1200.0,0.00014999,2]
[392745208,1761901802808,-13800.0,0.00015,2]
[392745209,1761901803609,500.0,0.00031232,120]
[392745210,1761901803847,500.0,0.00031506,120]
[392745211,1761901803909,500.0,0.00031232,120]
[392745212,1761901804173,500.0,0.00031506,120]
[392745213,1761901804777,-15000.0,0.00015,2]
[392745214,1761901806101,171.14155235,0.00031232,120]
[392745215,1761901806794,500.0,0.00031232,120]
[392745216,1761901807037,500.0,0.00031506,120]
[392745217,1761901807817,904.83,0.00031232,120]
[392745218,1761901807904,500.0,0.00031232,120]
[392745219,1761901807988,904.83,0.00031506,120]
[392745220,1761901808038,721.97,0.00031232,120]
[392745221,1761901808148,500.0,0.00031506,120]
[392745222,1761901808597,721.97,0.00031506,120]
[392745223,1761901809286,351.199699,0.00031232,120]
[392745224,1761901809439,500.0,0.00031232,120]
[392745225,1761901809691,500.0,0.00031506,120]
[392745226,1761901809838,500.0,0.00031232,120]
[392745227,1761901810073,424.79574274,0.00031506,120]
[392745228,1761901810275,500.0,0.00031232,120]
[392745229,1761901810551,500.0,0.00031506,120]
[392745230,1761901812636,500.0,0.00031232,120]
[392745231,1761901813133,500.0,0.00031506,120]
[392745232,1761901813517,500.0,0.00031232,120]
[392745233,1761901813785,500.0,0.00031506,120]
[392745234,1761901813986,500.0,0.00031232,120]
[392745235,1761901814239,500.0,0.00031506,120]
[392745236,1761901814700,500.0,0.00031232,120]
[392745237,1761901814957,500.0,0.00031506,120]
[392745238,1761901815473,500.0,0.00031232,120]
[392745239,1761901815714,500.0,0.00031506,120]
[392745240,1761901815905,677.42,0.00031232,120]
[392745241,1761901816157,677.42,0.00031506,120]
[392745242,1761901817075,1015.71,0.00031232,120]
[392745243,1761901817341,1015.71,0.00031506,120]
[392745244,1761901819270,500.0,0.00031232,120]
[392745245,1761901819508,500.0,0.00031506,120]
[392745246,1761901820335,500.0,0.00031232,120]
[392745247,1761901820575,638.24,0.00031232,120]
[392745248,1761901820630,500.0,0.00031506,120]
[392745249,1761901820829,638.24,0.00031506,120]
[392745250,1761901821141,500.0,0.00031232,120]
[392745251,1761901821385,468.20699617,0.00031506,120]
[392745252,1761901821487,500.0,0.00031232,120]
[392745253,1761901821730,500.0,0.00031506,120]
[392745254,1761901822695,500.0,0.00031232,120]
[392745255,1761901822926,500.0,0.00031506,120]
[392745256,1761901823628,500.0,0.00031232,120]
[392745257,1761901823862,500.0,0.00031506,120]
[392745258,1761901824044,500.0,0.00031232,120]
[392745259,1761901824284,500.0,0.00031506,120]
[392745260,1761901825303,556.18,0.00031232,120]
[392745261,1761901825560,556.18,0.00031506,120]
[392745262,1761901826041,500.0,0.00031232,120]
[392745263,1761901826484,872.51,0.00031232,120]
[392745264,1761901826656,872.51,0.00031506,120]
[392745265,1761901826720,500.0,0.00031232,120]
[392745266,1761901826854,-4931.0,0.00015,2]
[392745267,1761901826936,500.0,0.00031506,120]
[392745268,1761901827143,500.0,0.00031232,120]
[392745269,1761901827490,500.0,0.00031506,120]
[392745270,1761901828555,500.0,0.00031232,120]
[392745271,1761901828772,615.21485434,0.00031506,120]
[392745272,1761901829760,500.0,0.00031232,120]
[392745273,1761901829996,527.47406144,0.00031506,120]
[392745274,1761901830493,561.14,0.00031232,120]
[392745275,1761901830761,561.14,0.00031506,120]
[392745280,1761901832042,-256.70092543,0.00014999,2]
[392745281,1761901832095,-174.50322562,0.00014999,2]
[392745282,1761901832105,-11041.52521582,0.00015,2]
[392745283,1761901832118,-6962.597994,0.00015,2]
[392745284,1761901832130,-4050.606015,0.00015,2]
[392745285,1761901832142,-466.37199,0.00015,2]
[392745286,1761901832159,-9264.65000019,0.00015,2]
[392745287,1761901832202,-35732.20879734,0.00015,2]
[392745288,1761901832214,-7847.91776418,0.00015,2]
[392745289,1761901832288,-207529.10115446,0.00015,2]
[392745290,1761901832302,-56560.85918071,0.00015,2]
[392745291,1761901832365,-505.76559778,0.00015,2]
[392745294,1761901832539,515.9,0.00031232,120]
[392745319,1761901832833,515.9,0.00031506,120]
[392745320,1761901832903,500.0,0.00031232,120]
[392745321,1761901833076,500.0,0.00031506,120]
[392745322,1761901833313,500.0,0.00031232,120]
[392745323,1761901833581,500.0,0.00031506,120]
[392745324,1761901833965,636.02,0.00031232,120]
[392745325,1761901834335,500.0,0.00031232,120]
[392745326,1761901834414,636.02,0.00031506,120]
[392745327,1761901834463,500.0,0.00031506,120]
[392745328,1761901835317,500.0,0.00031232,120]
[392745329,1761901835563,500.0,0.00031506,120]
[392745330,1761901837540,500.0,0.00031232,120]
[392745332,1761901837770,500.0,0.00031506,120]
[392745333,1761901837909,-650.0,0.00015,2]
[392745334,1761901837957,-785.612,0.00015,2]
[392745335,1761901837970,-4074.42,0.00015,2]
[392745336,1761901838167,-340582.56541655,0.00015,2]
[392745337,1761901838178,-2027.73488218,0.00015,2]
[392745338,1761901838188,-7893.81958783,0.00015,2]
[392745339,1761901838198,-2131089.82026156,0.00015,2]
[392745340,1761901838207,-53766.875258,0.00015,2]
[392745341,1761901838219,-91872.50223695,0.00015,2]
[392745498,1761901840002,-75444.41862425,0.00015,2]
[392745499,1761901840209,500.0,0.00031232,120]
[392745500,1761901840265,-2702.06149368,0.00015,2]
[392745501,1761901842073,-0.04147313,0.00015,2]
[392745502,1761901842086,-764179.45815193,0.00015,2]
[392745503,1761901842193,-37187.27075178,0.00015,2]
[392745504,1761901842276,500.0,0.00031506,120]
[392745519,1761901843085,655.9,0.00031232,120]
[392745520,1761901843101,-500.0,0.00015,2]
[392745521,1761901843260,-500649.99736155,0.00015,2]
[392745522,1761901843318,655.9,0.00031506,120]
[392745526,1761901843991,500.0,0.00031232,120]
[392745527,1761901844215,500.0,0.00031506,120]
[392745528,1761901845621,500.0,0.00031232,120]
[392745529,1761901845858,500.0,0.00031506,120]
[392745531,1761901846176,500.0,0.00031232,120]
[392745532,1761901846206,-715.71744727,0.00015,2]
[392745533,1761901846318,500.0,0.00031232,120]
[392745534,1761901846400,500.0,0.00031506,120]
[392745539,1761901846552,193.11984902,0.00031506,120]
[392745550,1761901847791,500.0,0.00031232,120]
[392745551,1761901848039,500.0,0.00031506,120]
[392745552,1761901848335,500.0,0.00031232,120]
[392745553,1761901848578,500.0,0.00031506,120]
[392745554,1761901849242,500.0,0.00031232,120]
[392745555,1761901849843,666.18,0.00031232,120]
[392745556,1761901849985,500.0,0.00031506,120]
[392745557,1761901850033,666.18,0.00031506,120]
[392745558,1761901850322,500.0,0.00031232,120]
[392745559,1761901850572,359.57317647,0.00031506,120]
[392745560,1761901850622,500.0,0.00031232,120]
[392745561,1761901850823,500.0,0.00031506,120]
[392745562,1761901851712,411.27716114,0.00031232,120]
[392745563,1761901852216,500.0,0.00031232,120]
[392745564,1761901852538,500.0,0.00031506,120]
[392745565,1761901854195,500.0,0.00031232,120]
[392745566,1761901854422,500.0,0.00031506,120]
[392745567,1761901855427,500.0,0.00031232,120]
[392745568,1761901855676,500.0,0.00031506,120]
[392745569,1761901855851,500.0,0.00031232,120]
[392745570,1761901856096,500.0,0.00031506,120]
[392745571,1761901857268,500.0,0.00031232,120]
[392745572,1761901857509,500.0,0.00031506,120]
[392745573,1761901858064,500.0,0.00031232,120]
[392745574,1761901858330,500.0,0.00031506,120]
[392745575,1761901858740,180.15894997,0.00031232,120]
[392745576,1761901860018,500.0,0.00031232,120]
[392745577,1761901860245,500.0,0.00031506,120]
[392745578,1761901860620,500.0,0.00031232,120]
[392745579,1761901860889,500.0,0.00031506,120]
[392745580,1761901861548,500.0,0.00031232,120]
[392745581,1761901861786,500.0,0.00031506,120]
[392745582,1761901863057,500.0,0.00031232,120]
[392745583,1761901863318,500.0,0.00031506,120]
[392745584,1761901863551,500.0,0.00031232,120]
[392745585,1761901864014,500.0,0.00031506,120]
[392745586,1761901864144,500.0,0.00031232,120]
[392745587,1761901864373,500.0,0.00031232,120]
[392745588,1761901864467,500.0,0.00031506,120]
[392745589,1761901864547,799.41,0.00031232,120]
[392745590,1761901864620,500.0,0.00031506,120]
[392745591,1761901864790,799.41,0.00031506,120]
[392745592,1761901867958,500.7,0.00031232,120]
[392745593,1761901868241,500.7,0.00031506,120]
[392745594,1761901868823,500.0,0.00031232,120]
[392745595,1761901868890,490.80175448,0.00031232,120]
[392745596,1761901869080,500.0,0.00031506,120]
[392745597,1761901869394,500.0,0.00031232,120]
[392745598,1761901869534,500.0,0.00031506,120]
[392745599,1761901871802,641.19,0.00031232,120]
[392745600,1761901872037,641.19,0.00031506,120]
[392745601,1761901873027,500.0,0.00031232,120]
[392745602,1761901873272,500.0,0.00031506,120]
[392745603,1761901873444,500.0,0.00031232,120]
[392745604,1761901873708,500.0,0.00031506,120]
[392745605,1761901878633,604.85,0.00031232,120]
[392745606,1761901878871,604.85,0.00031506,120]
[392745607,1761901879102,500.0,0.00031232,120]
[392745608,1761901879375,500.0,0.00031506,120]
[392745609,1761901879688,500.0,0.00031232,120]
[392745610,1761901880484,500.0,0.00031506,120]
[392745611,1761901881048,500.0,0.00031232,120]
[392745612,1761901881325,500.0,0.00031506,120]
[392745613,1761901881513,500.0,0.00031232,120]
[392745614,1761901881766,500.0,0.00031506,120]
[392745615,1761901883394,604.58,0.00031232,120]
[392745616,1761901883632,604.58,0.00031506,120]
[392745617,1761901883696,568.1,0.00031232,120]
[392745618,1761901883936,568.1,0.00031506,120]
[392745619,1761901888332,500.0,0.00031232,120]
[392745620,1761901888440,500.0,0.00031232,120]
[392745621,1761901888486,550.55,0.00031232,120]
[392745622,1761901888582,190.20270365,0.00031506,120]
[392745623,1761901888673,500.0,0.00031506,120]
[392745624,1761901888723,550.55,0.00031506,120]
[392745625,1761901889125,584.52208193,0.00031232,120]
[392745626,1761901889876,460.58728125,0.00031232,120]
[392745627,1761901892693,500.0,0.00031232,120]
[392745628,1761901892746,500.0,0.00031232,120]
[392745629,1761901892930,500.0,0.00031506,120]
[392745630,1761901892982,500.0,0.00031506,120]
[392745631,1761901893847,500.0,0.00031232,120]
[392745632,1761901894082,500.0,0.00031506,120]
[392745633,1761901895317,172.78269364,0.00031232,120]
[392745634,1761901895698,500.0,0.00031232,120]
[392745635,1761901895944,500.0,0.00031506,120]
[392745636,1761901896590,307.9881718,0.00031232,120]
[392745637,1761901897657,500.0,0.00031232,120]
[392745638,1761901897882,597.0033045,0.00031232,120]
[392745639,1761901897932,244.57683467,0.00031506,120]
[392745640,1761901898532,500.0,0.00031232,120]
[392745641,1761901899458,500.0,0.00031506,120]
[392745642,1761901900288,500.0,0.00031232,120]
[392745643,1761901900522,500.0,0.00031506,120]
[392745644,1761901901362,500.0,0.00031232,120]
[392745645,1761901901419,500.0,0.00031232,120]
[392745646,1761901901523,500.0,0.00031506,120]
[392745647,1761901901583,531.87063494,0.00031506,120]
[392745648,1761901902097,500.0,0.00031232,120]
[392745649,1761901902277,564.08,0.00031232,120]
[392745650,1761901902336,500.0,0.00031506,120]
[392745651,1761901902520,564.08,0.00031506,120]
[392745652,1761901902589,500.0,0.00031232,120]
[392745653,1761901902828,500.0,0.00031506,120]
[392745654,1761901903455,500.0,0.00031232,120]
[392745655,1761901903571,500.0,0.00031232,120]
[392745656,1761901903706,540.93073809,0.00031506,120]
[392745657,1761901903822,596.39153715,0.00031506,120]
[392745658,1761901905062,500.0,0.00031232,120]
[392745659,1761901905297,500.0,0.00031506,120]
[392745660,1761901905354,525.08648769,0.00031232,120]
[392745661,1761901906014,591.13,0.00031232,120]
[392745662,1761901906271,591.13,0.00031506,120]
[392745663,1761901906946,500.0,0.00031232,120]
[392745664,1761901907178,500.0,0.00031506,120]
[392745665,1761901907286,540.96,0.00031232,120]
[392745666,1761901907522,540.96,0.00031506,120]
[392745667,1761901908654,545.82,0.00031232,120]
[392745668,1761901908783,500.0,0.00031232,120]
[392745669,1761901908890,545.82,0.00031506,120]
[392745670,1761901909010,500.0,0.00031506,120]
[392745671,1761901910258,522.04417689,0.00031232,120]
[392745672,1761901913018,568.84,0.00031232,120]
[392745673,1761901913267,568.84,0.00031506,120]
[392745674,1761901913770,500.0,0.00031232,120]
[392745675,1761901914005,500.0,0.00031506,120]
[392745676,1761901916012,631.53715836,0.00031232,120]
[392745677,1761901916429,609.91,0.00031232,120]
[392745678,1761901916583,500.0,0.00031232,120]
[392745679,1761901916692,609.91,0.00031506,120]
[392745680,1761901916828,526.562283,0.00031506,120]
[392745681,1761901919494,356.81242021,0.00031232,120]
[392745682,1761901920050,500.0,0.00031232,120]
[392745683,1761901920169,500.0,0.00031232,120]
[392745684,1761901920280,500.0,0.00031506,120]
[392745685,1761901920399,500.0,0.00031506,120]
[392745686,1761901920555,279.0207509,0.00031232,120]
[392745687,1761901922078,500.0,0.00031232,120]
[392745688,1761901922777,500.0,0.00031506,120]
[392745689,1761901923757,931.91,0.00031232,120]
[392745690,1761901924003,931.91,0.00031506,120]
[392745691,1761901924637,500.0,0.00031232,120]
[392745692,1761901924953,500.0,0.00031506,120]
[392745693,1761901926352,500.0,0.00031232,120]
[392745694,1761901926592,500.0,0.00031506,120]
[392745695,1761901926659,761.39,0.00031232,120]
[392745696,1761901926926,761.39,0.00031506,120]
[392745697,1761901927663,500.0,0.00031232,120]
[392745698,1761901927902,500.0,0.00031506,120]
[392745699,1761901927966,500.0,0.00031232,120]
[392745700,1761901928224,155.60176749,0.00031506,120]